bitfinex/quotes_BTCUSD_20251208
["timestamp","ask_amount","ask_price","bid_price","bid_amount"]
[1765154079011,0.31834458,90482.0,90481.0,0.06252299]
[1765154079294,0.31734458,90482.0,90481.0,0.06252299]
[1765154079701,0.34150458,90482.0,90481.0,0.06252299]
[1765154079875,0.34150458,90482.0,90481.0,0.08000299]
[1765154080308,0.30300458,90482.0,90481.0,0.08000299]
[1765154080966,0.30139171,90482.0,90481.0,0.11245422]
[1765154081169,0.30139171,90482.0,90481.0,0.13465422]
[1765154081380,0.30139171,90482.0,90481.0,0.15433422]
[1765154082244,0.30139171,90482.0,90481.0,0.13465422]
[1765154082383,0.34091171,90482.0,90481.0,0.08000299]
[1765154082564,0.56290186,90482.0,90481.0,0.06252299]
[1765154082767,0.56290186,90482.0,90480.0,0.03241199]
[1765154082988,0.03952,90481.0,90480.0,0.03241199]
[1765154083276,0.04044199,90481.0,90480.0,0.03241199]
[1765154084311,0.04244199,90481.0,90480.0,0.03241199]
[1765154084508,0.04405486,90481.0,90480.0,0.03241199]
[1765154084713,0.01105387,90466.0,90465.0,0.01748]
[1765154084884,0.01105326,90471.0,90467.0,0.01105375]
[1765154085087,0.01105326,90471.0,90468.0,0.01105363]
[1765154085518,0.01237,90473.0,90470.0,0.06252299]
[1765154086154,0.01237,90473.0,90470.0,0.29464212]
[1765154086577,0.001,90471.0,90470.0,0.29464212]
[1765154086997,0.01105302,90473.0,90470.0,0.06252299]
[1765154087146,0.01105289,90474.0,90472.0,0.06252299]
[1765154087353,0.001,90473.0,90472.0,0.09577613]
[1765154087548,0.001,90473.0,90472.0,0.06252299]
[1765154088619,0.01541,90473.0,90472.0,0.06252299]
[1765154089055,0.03952,90473.0,90470.0,0.06252299]
[1765154089250,0.01541,90472.0,90470.0,0.06252299]
[1765154089785,0.01541,90472.0,90471.0,0.2835883]
[1765154089983,0.22265618,90481.0,90475.0,0.01105277]
[1765154089984,0.04753228,90479.0,90475.0,0.01105277]
[1765154090208,0.01237,90479.0,90476.0,0.07357564]
[1765154090427,0.00161287,90481.0,90478.0,0.06252299]
[1765154090652,0.00161287,90481.0,90480.0,0.06252299]
[1765154091552,0.01702287,90481.0,90480.0,0.06252299]
[1765154092218,0.00161287,90481.0,90480.0,0.28356631]
[1765154092754,0.00261287,90481.0,90480.0,0.06252299]
[1765154092956,0.01802287,90481.0,90480.0,0.06252299]
[1765154093160,0.00261287,90481.0,90480.0,0.06252299]
[1765154095320,0.001,90481.0,90480.0,0.06252299]
[1765154095865,0.00192199,90481.0,90480.0,0.06252299]
[1765154096546,0.00192199,90481.0,90480.0,0.12992343]
[1765154096955,0.00192199,90481.0,90480.0,0.10048299]
[1765154097540,0.00192199,90481.0,90480.0,0.12016299]
[1765154098854,0.00192199,90481.0,90480.0,0.10048299]
[1765154099183,0.00192199,90481.0,90480.0,0.45589498]
[1765154099390,0.00192199,90481.0,90480.0,0.47557498]
[1765154099935,0.00092199,90481.0,90480.0,0.47557498]
[1765154100358,0.00092199,90481.0,90480.0,0.47757498]
[1765154100576,0.00092199,90481.0,90480.0,0.47857498]
[1765154100761,3.7e-06,90482.0,90481.0,0.62876387]
[1765154100993,3.7e-06,90482.0,90481.0,0.67411586]
[1765154101198,3.7e-06,90482.0,90481.0,0.71379586]
[1765154101418,3.7e-06,90482.0,90481.0,1.10021386]
[1765154102298,3.7e-06,90482.0,90481.0,0.71379586]
[1765154102502,3.7e-06,90482.0,90481.0,0.63950387]
[1765154102715,3.7e-06,90482.0,90481.0,0.70557318]
[1765154102901,3.7e-06,90482.0,90481.0,0.69238387]
[1765154103346,3.7e-06,90482.0,90481.0,0.68138387]
[1765154103564,3.7e-06,90482.0,90481.0,0.98692387]
[1765154103772,3.7e-06,90482.0,90481.0,0.99092387]
[1765154104427,3.7e-06,90482.0,90481.0,0.98692387]
[1765154104895,3.7e-06,90482.0,90481.0,0.99192387]
[1765154105098,3.7e-06,90482.0,90481.0,0.98492387]
[1765154105300,3.7e-06,90482.0,90481.0,0.99592387]
[1765154105580,0.01104752,90518.0,90481.0,0.77488299]
[1765154105782,0.22093218,90526.0,90481.0,0.77488299]
[1765154105783,8.16325022,90500.0,90499.0,1.4885129]
[1765154105986,8.16325022,90500.0,90499.0,1.5059929]
[1765154106196,8.16325022,90500.0,90499.0,1.5256729]
[1765154106459,7.66574957,90500.0,90499.0,1.5256729]
[1765154106692,7.30056063,90500.0,90499.0,1.74261649]
[1765154106891,7.30056063,90500.0,90499.0,1.5059929]
[1765154107320,7.27656063,90500.0,90499.0,1.5059929]
[1765154107531,7.27656063,90500.0,90499.0,1.57075618]
[1765154107943,7.27656063,90500.0,90499.0,1.56475618]
[1765154108146,7.27656063,90500.0,90499.0,1.57675618]
[1765154108358,7.27656063,90500.0,90499.0,1.6656994]
[1765154108574,7.27656063,90500.0,90499.0,1.6536994]
[1765154108781,7.24341366,90500.0,90499.0,1.6536994]
[1765154108991,6.3444316,90500.0,90499.0,1.6486994]
[1765154109212,5.89864413,90500.0,90499.0,1.6546994]
[1765154109425,5.65138971,90500.0,90499.0,1.6546994]
[1765154109651,0.69558074,90500.0,90499.0,1.6324994]
[1765154109892,0.41140311,90500.0,90499.0,1.6240194]
[1765154110088,0.17947963,90500.0,90499.0,1.56773612]
[1765154110298,9e-05,90535.0,90529.0,0.22092368]
[1765154110521,0.00031735,90530.0,90529.0,2.68516357]
[1765154110744,0.00031735,90530.0,90529.0,2.51264867]
[1765154110949,0.00031735,90530.0,90529.0,2.52032264]
[1765154111158,0.00031735,90530.0,90529.0,1.63694964]
[1765154111375,0.00031735,90530.0,90529.0,1.42713364]
[1765154111632,0.00031735,90530.0,90529.0,1.07995964]
[1765154111846,0.00031735,90530.0,90529.0,0.74362467]
[1765154112063,0.00031735,90530.0,90529.0,0.76610467]
[1765154112267,0.00177366,90530.0,90529.0,0.76610467]
[1765154112496,0.00177366,90530.0,90529.0,0.74862467]
[1765154112753,0.00177366,90530.0,90529.0,0.76610467]
[1765154117903,0.00177366,90530.0,90529.0,0.75629864]
[1765154118093,0.00177366,90530.0,90529.0,0.77377864]
[1765154118497,1e-08,90530.0,90529.0,0.77377864]
[1765154118718,1e-08,90530.0,90529.0,0.85718024]
[1765154119942,1e-08,90530.0,90529.0,0.83970024]
[1765154120143,1e-08,90530.0,90529.0,0.89621966]
[1765154120579,9e-05,90535.0,90530.0,0.03409999]
[1765154120787,9e-05,90535.0,90534.0,0.78787399]
[1765154121005,9e-05,90535.0,90534.0,0.73917699]
[1765154121217,9e-05,90535.0,90534.0,0.76131699]
[1765154121440,0.00767397,90543.0,90540.0,0.01104484]
[1765154121673,0.00729397,90543.0,90542.0,2.62861495]
[1765154121878,0.00729397,90543.0,90542.0,2.65075495]
[1765154122102,0.00729397,90543.0,90542.0,2.66260495]
[1765154122541,0.0002,90550.0,90542.0,2.69670494]
[1765154122746,1e-08,90550.0,90549.0,2.65073787]
[1765154122964,0.0002,90600.0,90595.0,0.0222]
[1765154123201,0.00220419,90600.0,90597.0,0.01103789]
[1765154123398,0.00220419,90600.0,90599.0,0.08472299]
[1765154123825,0.00220419,90600.0,90599.0,0.06252299]
[1765154124033,0.06646419,90600.0,90599.0,0.06252299]
[1765154124259,0.06646419,90600.0,90570.0,0.70798157]
[1765154124260,0.38255474,90600.0,90590.0,0.38552299]
[1765154124459,0.00220419,90600.0,90597.0,0.01103789]
[1765154124633,0.00220419,90600.0,90599.0,0.0222]
[1765154125021,0.00220419,90600.0,90599.0,0.06252299]
[1765154125022,0.00059132,90600.0,90599.0,0.06252299]
[1765154125218,0.00159132,90600.0,90599.0,0.08472299]
[1765154126395,0.00059132,90600.0,90599.0,0.08472299]
[1765154126624,0.00059132,90600.0,90599.0,0.08484299]
[1765154126841,0.00266958,90600.0,90599.0,0.08484299]
[1765154127789,0.00266958,90600.0,90599.0,0.40784299]
[1765154129524,0.00266958,90600.0,90599.0,0.44194298]
[1765154130111,0.00266958,90600.0,90599.0,1.36669598]
[1765154130452,0.00266958,90600.0,90599.0,1.33259599]
[1765154130847,0.23252357,90632.0,90625.0,0.06252299]
[1765154131062,0.01103387,90630.0,90628.0,0.0222]
[1765154131270,0.23264098,90632.0,90629.0,0.03323399]
[1765154131271,0.01196741,90632.0,90629.0,0.03323399]
[1765154131510,0.00011741,90632.0,90629.0,0.03323399]
[1765154131714,0.00089003,90630.0,90629.0,0.0222]
[1765154132330,0.0761839,90630.0,90629.0,0.0222]
[1765154132507,0.0761839,90630.0,90612.0,0.01703123]
[1765154132508,0.01103582,90614.0,90612.0,0.01703123]
[1765154132706,0.00161287,90614.0,90608.0,0.323]
[1765154132912,0.00161287,90614.0,90613.0,0.0222]
[1765154133091,0.01103423,90627.0,90619.0,0.23173781]
[1765154133291,0.00161287,90623.0,90620.0,0.02851509]
[1765154133489,0.00161287,90623.0,90622.0,0.0222]
[1765154133753,0.00161287,90623.0,90622.0,0.03968]
[1765154134077,0.00011741,90632.0,90629.0,0.2317137]
[1765154134307,0.00011741,90632.0,90631.0,0.0982]
[1765154134514,0.00011741,90632.0,90631.0,0.48372299]
[1765154135570,0.00011741,90632.0,90631.0,0.57579299]
[1765154135733,0.00011741,90632.0,90631.0,0.55359299]
[1765154135928,0.01103168,90648.0,90644.0,0.01103216]
[1765154136315,0.0110318,90647.0,90645.0,0.01748]
[1765154136618,0.01264467,90647.0,90646.0,0.01748]
[1765154136826,0.00161287,90647.0,90646.0,0.03968]
[1765154137283,0.01103119,90652.0,90648.0,0.06252299]
[1765154137489,0.0110307,90656.0,90648.0,0.12662299]
[1765154137490,0.01103131,90651.0,90648.0,0.12662299]
[1765154137699,0.01103131,90651.0,90650.0,0.0222]
[1765154137906,0.01103131,90651.0,90645.0,0.001]
[1765154137907,0.22062879,90650.0,90649.0,0.06252299]
[1765154138111,0.01103107,90653.0,90650.0,0.08000299]
[1765154138316,0.01103058,90657.0,90653.0,0.0222]
[1765154138515,0.22061662,90655.0,90653.0,0.0222]
[1765154138631,0.00160164,90654.0,90653.0,0.0222]
[1765154139052,0.01263259,90654.0,90651.0,0.06252299]
[1765154139336,0.01103119,90652.0,90649.0,0.0222]
[1765154139507,0.01103119,90652.0,90650.0,0.08000299]
[1765154139751,0.22062392,90652.0,90650.0,0.08000299]
[1765154139955,0.01103107,90653.0,90650.0,0.08000299]
[1765154140160,0.01103107,90653.0,90650.0,0.06252299]
[1765154140371,0.01264382,90654.0,90651.0,0.01748]
[1765154140575,0.013,90652.0,90650.0,0.06252299]
[1765154140747,0.013,90652.0,90651.0,0.01748]
[1765154141181,0.013,90652.0,90650.0,0.06252299]
[1765154141392,0.013,90652.0,90651.0,0.01748]
[1765154141612,0.013,90652.0,90649.0,0.0232]
[1765154141613,0.38022635,90651.0,90649.0,0.001]
[1765154141810,0.38022635,90651.0,90639.0,0.01103277]
[1765154141811,0.01103241,90642.0,90639.0,0.06252299]
[1765154142020,0.01103241,90642.0,90641.0,0.06252299]
[1765154142227,0.01103326,90635.0,90628.0,0.03323411]
[1765154142426,0.01103277,90639.0,90636.0,0.01103314]
[1765154142427,0.0656,90639.0,90636.0,0.01103314]
[1765154142656,0.01103302,90637.0,90633.0,0.0222]
[1765154142817,0.0656,90629.0,90628.0,0.00011741]
[1765154143018,0.04536,90633.0,90630.0,0.23171084]
[1765154143270,0.04536,90633.0,90632.0,0.0222]
[1765154144295,0.01203277,90639.0,90634.0,0.01103338]
[1765154144492,0.0110329,90638.0,90633.0,0.0110335]
[1765154144694,0.0110329,90638.0,90634.0,0.01103338]
[1765154144979,0.01103253,90641.0,90635.0,0.01103326]
[1765154145302,0.01103241,90642.0,90638.0,0.0110329]
[1765154145499,0.01103253,90641.0,90638.0,0.0110329]
[1765154145864,0.01103265,90640.0,90635.0,0.02851326]
[1765154146072,0.2316909,90638.0,90635.0,0.01748]
[1765154146249,0.0656,90636.0,90635.0,0.01748]
[1765154146453,0.01303253,90641.0,90635.0,0.01748]
[1765154146454,0.00161287,90654.0,90640.0,0.01103265]
[1765154146813,0.01103314,90636.0,90630.0,0.02851387]
[1765154147009,0.0110329,90638.0,90632.0,0.01103363]
[1765154147213,0.01103302,90637.0,90635.0,0.009]
[1765154147368,0.10957302,90637.0,90635.0,0.009]
[1765154147567,0.28626287,90636.0,90635.0,0.009]
[1765154147994,0.38480287,90636.0,90635.0,0.009]
[1765154148963,0.22067991,90629.0,90628.0,0.00011741]
[1765154149185,0.28627991,90629.0,90628.0,0.00011741]
[1765154149410,0.4070159,90629.0,90628.0,0.00011741]
[1765154150409,0.38481991,90629.0,90628.0,0.00011741]
[1765154150586,0.38481991,90629.0,90591.0,0.26596202]
[1765154150587,0.01103728,90602.0,90601.0,0.01748]
[1765154150814,0.22074811,90601.0,90595.0,0.01103813]
[1765154151020,0.01103764,90599.0,90596.0,0.0222]
[1765154151423,0.0563974,90601.0,90596.0,0.03323801]
[1765154151851,0.1439,90601.0,90598.0,0.23179203]
[1765154152087,0.00011713,90602.0,90601.0,0.22074811]
[1765154152287,0.00211713,90602.0,90601.0,0.25174811]
[1765154152478,0.06571713,90602.0,90601.0,0.22074811]
[1765154153474,0.00011713,90602.0,90601.0,0.40039811]
[1765154153721,0.00111713,90602.0,90601.0,0.4769211]
[1765154154172,0.00111713,90602.0,90601.0,0.7999211]
[1765154154841,0.00111713,90602.0,90601.0,0.83880377]
[1765154155066,0.00211713,90602.0,90601.0,1.4742951]
[1765154155285,0.00211713,90602.0,90601.0,1.50743081]
[1765154155498,0.00111713,90602.0,90601.0,1.49343081]
[1765154155721,0.00011713,90602.0,90601.0,1.49343081]
[1765154155967,0.00411713,90602.0,90601.0,1.53843081]
[1765154156377,0.00311713,90602.0,90601.0,1.53143081]
[1765154156586,0.00011713,90602.0,90601.0,1.49343081]
[1765154156793,0.00111713,90602.0,90601.0,1.50343081]
[1765154157008,0.00411713,90602.0,90601.0,1.54143081]
[1765154157844,0.00311713,90602.0,90601.0,1.53143081]
[1765154158045,0.00011713,90602.0,90601.0,1.49343081]
[1765154158254,0.00111713,90602.0,90601.0,1.50243081]
[1765154158425,0.00311713,90602.0,90601.0,1.53443081]
[1765154158680,0.00011713,90602.0,90601.0,1.49343081]
[1765154159088,0.00311713,90602.0,90601.0,1.53743081]
[1765154161023,0.00311713,90602.0,90601.0,1.1525227]
[1765154161244,0.00311713,90602.0,90601.0,0.93552111]
[1765154161471,0.00311713,90602.0,90601.0,0.38902086]
[1765154161654,0.00311713,90602.0,90601.0,0.35246811]
[1765154161826,0.06390713,90602.0,90601.0,0.06148]
[1765154162026,0.00211713,90602.0,90601.0,0.09071123]
[1765154162236,0.00011713,90602.0,90601.0,0.05671123]
[1765154162499,0.00111713,90602.0,90601.0,0.06471123]
[1765154162661,0.00211713,90602.0,90601.0,0.09271123]
[1765154162861,0.00011713,90602.0,90601.0,0.05671123]
[1765154163175,0.00011713,90602.0,90601.0,0.07571123]
[1765154163629,0.00011713,90602.0,90601.0,0.05868]
[1765154164208,0.00111713,90602.0,90601.0,0.06368]
[1765154166274,0.00111713,90602.0,90601.0,0.29128299]
[1765154166417,0.00111713,90602.0,90601.0,0.5120311]
[1765154167032,0.00111713,90602.0,90601.0,0.27411565]
[1765154167033,0.06190713,90602.0,90601.0,0.27411565]
[1765154167238,0.15991713,90602.0,90601.0,0.26222811]
[1765154168035,0.15991713,90602.0,90601.0,0.24474811]
[1765154168255,0.38227567,90602.0,90601.0,0.024]
[1765154168990,0.40447166,90602.0,90601.0,0.024]
[1765154169368,0.01104069,90574.0,90573.0,0.0294106]
[1765154169513,0.01104069,90574.0,90571.0,0.0294106]
[1765154169711,0.01104081,90573.0,90570.0,0.0294106]
[1765154169911,0.09801,90574.0,90571.0,0.01104106]
[1765154170121,0.09801,90574.0,90573.0,0.01104081]
[1765154170333,0.10596,90572.0,90571.0,0.01104106]
[1765154170548,0.10607706,90572.0,90571.0,0.01104106]
[1765154170995,0.01104106,90571.0,90567.0,0.01748]
[1765154171220,0.01427106,90571.0,90567.0,0.02852154]
[1765154171432,0.06022,90568.0,90567.0,0.01748]
[1765154171638,0.06022,90568.0,90561.0,0.22084364]
[1765154171639,0.15984287,90568.0,90560.0,0.0110424]
[1765154171850,0.15984287,90568.0,90561.0,0.01748]
[1765154171851,0.01104191,90564.0,90561.0,0.01748]
[1765154172049,0.01104252,90559.0,90552.0,0.01104337]
[1765154172295,0.11565,90553.0,90552.0,0.01748]
[1765154172542,0.04976,90553.0,90552.0,0.01748]
[1765154172754,0.04976,90555.0,90553.0,0.22086512]
[1765154172968,0.04976,90563.0,90559.0,0.01104252]
[1765154173209,0.05624,90560.0,90559.0,0.01104252]
[1765154173385,0.0672824,90560.0,90556.0,0.01104289]
[1765154173585,0.00056,90559.0,90556.0,0.01104289]
[1765154173839,0.001,90564.0,90560.0,0.0110424]
[1765154174042,0.22084074,90563.0,90558.0,0.01104264]
[1765154174241,0.01104179,90565.0,90559.0,0.03324252]
[1765154174452,0.01104179,90565.0,90559.0,0.009]
[1765154174453,0.22284805,90560.0,90559.0,0.009]
[1765154174618,0.28773805,90560.0,90559.0,0.004]
[1765154174814,0.37386805,90560.0,90559.0,0.004]
[1765154175046,0.37386805,90560.0,90528.0,0.22092499]
[1765154175047,0.22090718,90536.0,90523.0,0.26139395]
[1765154175259,0.01104606,90530.0,90526.0,0.01104655]
[1765154175399,0.01104594,90531.0,90527.0,0.01104642]
[1765154175608,0.09608,90530.0,90526.0,0.01104655]
[1765154175811,0.01104691,90523.0,90522.0,0.01752]
[1765154176016,0.01104618,90529.0,90522.0,0.01752]
[1765154176218,0.0110463,90528.0,90524.0,0.01104679]
[1765154176738,0.220931,90526.0,90522.0,0.01791132]
[1765154176951,0.09692,90523.0,90522.0,0.01791132]
[1765154177120,0.09692,90523.0,90522.0,0.00039132]
[1765154177337,0.19251,90523.0,90522.0,0.00039132]
[1765154177887,0.41344832,90523.0,90522.0,0.00039132]
[1765154178060,0.41344832,90523.0,90522.0,0.00439132]
[1765154178061,0.41444832,90523.0,90522.0,0.00439132]
[1765154178717,0.41544832,90523.0,90522.0,0.01139132]
[1765154179135,0.41706119,90523.0,90522.0,0.01139132]
[1765154179835,0.41706119,90523.0,90522.0,0.00439132]
[1765154179836,0.41606119,90523.0,90522.0,0.00439132]
[1765154180038,0.41506119,90523.0,90522.0,0.00039132]
[1765154180238,0.42206119,90523.0,90522.0,0.00139132]
[1765154183524,0.83767808,90523.0,90522.0,0.00139132]
[1765154183716,0.22096761,90511.0,90510.0,0.0004]
[1765154183922,0.22096761,90511.0,90510.0,0.00051735]
[1765154184136,0.26812761,90511.0,90510.0,0.00051735]
[1765154184316,0.36371761,90511.0,90510.0,0.00051735]
[1765154184898,0.38671761,90511.0,90510.0,0.00351735]
[1765154185109,0.29112761,90511.0,90510.0,0.00351735]
[1765154185490,0.38671761,90511.0,90510.0,0.00351735]
[1765154186284,0.38671761,90511.0,90510.0,0.00051735]
[1765154186285,0.36371761,90511.0,90510.0,0.00051735]
[1765154186491,0.024,90511.0,90510.0,0.2476874]
[1765154186709,0.024,90511.0,90510.0,0.3125174]
[1765154186914,0.016,90511.0,90510.0,0.3115174]
[1765154187329,0.023,90511.0,90510.0,0.2476874]
[1765154187989,0.023,90511.0,90510.0,0.00451735]
[1765154189839,0.07016,90511.0,90510.0,0.00451735]
[1765154190046,0.16575,90511.0,90510.0,0.00451735]
[1765154194470,0.18794599,90511.0,90510.0,0.00451735]
[1765154194691,0.16575,90511.0,90510.0,0.00451735]
[1765154195117,0.18794599,90511.0,90510.0,0.00451735]
[1765154195289,0.16494599,90511.0,90510.0,0.00051735]
[1765154195493,0.25325293,90511.0,90510.0,0.00051735]
[1765154195726,0.29077293,90511.0,90510.0,0.00451735]
[1765154195938,0.51648293,90511.0,90510.0,0.00451735]
[1765154196111,0.38093599,90511.0,90510.0,0.00451735]
[1765154196559,0.20246599,90511.0,90510.0,0.00451735]
[1765154196783,0.33306799,90511.0,90510.0,0.00451735]
[1765154198642,0.20246599,90511.0,90510.0,0.00451735]
[1765154199609,0.29452493,90511.0,90510.0,0.00451735]
[1765154201572,0.16275,90511.0,90510.0,0.00451735]
[1765154201773,0.18027,90511.0,90510.0,0.00451735]
[1765154202827,0.20246599,90511.0,90510.0,0.00451735]
[1765154203071,0.18027,90511.0,90510.0,0.00451735]
[1765154203291,0.16275,90511.0,90510.0,0.00451735]
[1765154207533,0.18494599,90511.0,90510.0,0.00451735]
[1765154207934,0.16275,90511.0,90510.0,0.00451735]
[1765154211293,0.18494599,90511.0,90510.0,0.00451735]
[1765154221076,0.02,90511.0,90510.0,0.00451735]
[1765154221243,0.02,90511.0,90510.0,0.06849735]
[1765154221449,0.16779,90511.0,90510.0,0.00451735]
[1765154221846,0.16779,90511.0,90510.0,0.00151735]
[1765154222078,0.14779,90511.0,90510.0,0.00051735]
[1765154222272,0.16079,90511.0,90510.0,0.00451735]
[1765154222609,0.15579,90511.0,90510.0,0.00151735]
[1765154223266,0.24960633,90511.0,90510.0,0.00151735]
[1765154223467,0.14779,90511.0,90510.0,0.00051735]
[1765154223844,0.17998599,90511.0,90510.0,0.00551735]
[1765154224075,0.17698599,90511.0,90510.0,0.00151735]
[1765154224274,0.16998599,90511.0,90510.0,0.00051735]
[1765154224496,0.16998599,90511.0,90510.0,0.00451735]
[1765154224497,0.17598599,90511.0,90510.0,0.00451735]
[1765154224689,0.18398599,90511.0,90510.0,0.00451735]
[1765154224854,0.17798599,90511.0,90510.0,0.00151735]
[1765154225054,0.17798599,90511.0,90510.0,0.00351735]
[1765154225249,0.18598599,90511.0,90510.0,0.00451735]
[1765154225542,0.16379,90511.0,90510.0,0.00451735]
[1765154226344,0.26413429,90511.0,90510.0,0.00451735]
[1765154227276,0.01105167,90484.0,90481.0,0.03917616]
[1765154227475,0.01105167,90484.0,90481.0,0.00011746]
[1765154227476,0.04735,90482.0,90481.0,0.00011746]
[1765154227660,0.14533,90482.0,90481.0,0.00011746]
[1765154228638,0.04735,90482.0,90481.0,0.00811746]
[1765154228776,0.05335,90482.0,90481.0,0.02311746]
[1765154229201,0.15133,90482.0,90481.0,0.02311746]
[1765154229632,0.15133,90482.0,90481.0,0.01511746]
[1765154230092,0.15233,90482.0,90481.0,0.01511746]
[1765154232130,0.25583155,90482.0,90481.0,0.01511746]
[1765154232561,0.19317009,90482.0,90481.0,0.01511746]
[1765154232730,0.1709741,90482.0,90481.0,0.01511746]
[1765154233064,0.18617009,90482.0,90481.0,0.00011746]
[1765154233238,0.19117009,90482.0,90481.0,0.00011746]
[1765154233472,0.19517009,90482.0,90481.0,0.00011746]
[1765154233682,0.18617009,90482.0,90481.0,0.00011746]
[1765154234092,0.19717009,90482.0,90481.0,0.00011746]
[1765154234692,0.1749741,90482.0,90481.0,0.00011746]
[1765154235712,0.15794287,90482.0,90481.0,0.00011746]
[1765154235920,0.011,90482.0,90481.0,0.00011746]
[1765154236121,0.011,90482.0,90481.0,0.04530746]
[1765154236323,0.23203843,90482.0,90481.0,0.04530746]
[1765154236476,0.38693843,90482.0,90481.0,0.00011746]
[1765154236685,0.38093843,90482.0,90481.0,0.00011746]
[1765154236881,0.37593843,90482.0,90481.0,0.00011746]
[1765154237090,0.38293843,90482.0,90481.0,0.00011746]
[1765154237314,0.47274626,90482.0,90481.0,0.00011746]
[1765154237516,0.39813442,90482.0,90481.0,0.00011746]
[1765154237714,0.40313442,90482.0,90481.0,0.00011746]
[1765154238333,0.40813442,90482.0,90481.0,0.00011746]
[1765154238543,0.22109952,90457.0,90456.0,0.00474503]
[1765154238774,0.22204952,90457.0,90456.0,0.00513674]
[1765154239172,0.31756952,90457.0,90456.0,0.00513674]
[1765154240137,0.2321511,90459.0,90456.0,0.07076674]
[1765154240339,0.005,90457.0,90456.0,0.00513674]
[1765154240875,0.2321511,90459.0,90456.0,0.00513674]
[1765154241081,0.06503,90457.0,90456.0,0.00713674]
[1765154241281,0.06103,90457.0,90456.0,0.00713674]
[1765154241463,0.15619,90457.0,90456.0,0.00713674]
[1765154241663,0.16219,90457.0,90456.0,0.00713674]
[1765154241910,0.001,90457.0,90456.0,0.00713674]
[1765154242320,0.005,90457.0,90456.0,0.00513674]
[1765154242864,0.005,90457.0,90456.0,0.07176674]
[1765154243206,0.005,90457.0,90456.0,0.07076674]
[1765154243435,0.01105387,90466.0,90463.0,0.01105424]
[1765154244316,0.01105375,90467.0,90464.0,0.01105412]
[1765154244615,0.01105387,90466.0,90463.0,0.01105424]
[1765154244822,0.01105387,90466.0,90462.0,0.01105436]
[1765154244823,0.01105399,90465.0,90462.0,0.01105436]
[1765154244962,0.01105436,90462.0,90456.0,0.00513674]
[1765154245167,0.00089,90462.0,90457.0,0.02857497]
[1765154245763,0.01194436,90462.0,90459.0,0.01105473]
[1765154245967,0.01194436,90462.0,90456.0,0.02265674]
[1765154245968,0.22109952,90457.0,90456.0,0.02265674]
[1765154246198,0.22286952,90457.0,90456.0,0.00513674]
[1765154246398,0.31838952,90457.0,90456.0,0.00513674]
[1765154247296,0.32338952,90457.0,90456.0,0.00513674]
[1765154247495,0.32900239,90457.0,90456.0,0.00513674]
[1765154254804,0.10629,90457.0,90456.0,0.00513674]
[1765154255021,0.009,90457.0,90456.0,0.00513674]
[1765154255371,0.009,90457.0,90456.0,0.09296674]
[1765154255572,0.009,90457.0,90456.0,0.16354674]
[1765154255774,0.009,90457.0,90456.0,0.57126973]
[1765154255983,0.009,90457.0,90456.0,0.39065973]
[1765154256705,0.009,90457.0,90456.0,0.06765973]
[1765154256921,0.005,90457.0,90456.0,0.15548973]
[1765154257136,0.011,90457.0,90456.0,0.15548973]
[1765154257511,0.04693,90466.0,90463.0,0.01105424]
[1765154257708,0.04693,90466.0,90463.0,0.23213762]
[1765154257915,0.05798387,90466.0,90461.0,0.01752]
[1765154258235,0.05798387,90466.0,90462.0,0.23213945]
[1765154258394,0.04693,90466.0,90463.0,0.01105424]
[1765154258815,0.04793,90466.0,90463.0,0.01305424]
[1765154259286,0.05293,90466.0,90463.0,0.02605424]
[1765154259508,0.05293,90466.0,90464.0,0.22108241]
[1765154259895,0.05293,90466.0,90463.0,0.02605424]
[1765154260525,0.04693,90466.0,90463.0,0.01105424]
[1765154260895,0.05293,90466.0,90464.0,0.015]
[1765154261301,0.05193,90466.0,90464.0,0.013]
[1765154261504,0.05193,90466.0,90464.0,0.23408169]
[1765154261722,0.05293,90466.0,90464.0,0.23408169]
[1765154261944,0.006,90466.0,90464.0,0.23408169]
[1765154262174,0.005,90466.0,90464.0,0.23408169]
[1765154262389,0.005,90466.0,90465.0,0.06125]
[1765154262564,0.006,90466.0,90465.0,0.06125]
[1765154262770,0.001,90466.0,90464.0,0.22308169]
[1765154263383,0.006,90466.0,90464.0,0.22308169]
[1765154263560,0.005,90466.0,90464.0,0.22108169]
[1765154263772,0.01105302,90473.0,90470.0,0.01105338]
[1765154264359,0.06067,90471.0,90470.0,0.01105338]
[1765154264554,0.01105302,90473.0,90470.0,0.01105338]
[1765154265377,0.06067,90471.0,90470.0,0.01105338]
[1765154265605,0.06567,90471.0,90470.0,0.01105338]
[1765154266012,0.06567,90471.0,90470.0,0.01405338]
[1765154266211,0.06567,90471.0,90470.0,0.003]
[1765154266388,0.01105399,90465.0,90462.0,0.01105436]
[1765154266756,0.00427,90465.0,90463.0,0.22108486]
[1765154267627,0.01105363,90468.0,90465.0,0.01105399]
[1765154268050,0.06067,90466.0,90463.0,0.002]
[1765154268255,0.00427,90464.0,90463.0,0.01952]
[1765154268427,0.00427,90464.0,90463.0,0.01752]
[1765154268686,0.06172287,90464.0,90462.0,0.013]
[1765154268879,0.05247,90463.0,90462.0,0.013]
[1765154269018,0.22109708,90458.0,90456.0,0.00513674]
[1765154269229,0.05955,90457.0,90456.0,0.00513674]
[1765154269430,0.14945,90457.0,90456.0,0.00513674]
[1765154270586,0.14945,90457.0,90456.0,0.03041674]
[1765154270587,0.005,90457.0,90456.0,0.03041674]
[1765154270967,0.006,90457.0,90456.0,0.03241674]
[1765154271166,0.006,90457.0,90456.0,0.02013674]
[1765154271953,0.22109708,90458.0,90456.0,0.00513674]
[1765154272169,0.06067,90457.0,90456.0,0.00513674]
[1765154272404,0.06667,90457.0,90456.0,0.01713674]
[1765154272616,0.06067,90457.0,90456.0,0.00513674]
[1765154273052,0.005,90457.0,90456.0,0.01513674]
[1765154273276,0.006,90457.0,90456.0,0.01513674]
[1765154273522,0.006,90457.0,90456.0,0.07638674]
[1765154273706,0.005,90457.0,90456.0,0.01513674]
[1765154274134,0.006,90457.0,90456.0,0.01513674]
[1765154274574,0.006,90457.0,90456.0,0.09390674]
[1765154274752,0.006,90457.0,90456.0,0.53485893]
[1765154274983,0.006,90457.0,90456.0,0.52004171]
[1765154275366,0.006,90457.0,90456.0,0.49784171]
[1765154275565,0.006,90457.0,90456.0,0.52004171]
[1765154275766,0.001,90457.0,90456.0,0.56925553]
[1765154276161,0.007,90457.0,90456.0,0.52004171]
[1765154276366,0.006,90457.0,90456.0,0.52004171]
[1765154276787,0.007,90457.0,90456.0,0.52704171]
[1765154278075,0.007,90457.0,90456.0,0.5895647]
[1765154278785,0.007,90457.0,90456.0,0.60061735]
[1765154282543,0.007,90457.0,90456.0,0.51493735]
[1765154282744,0.007,90457.0,90456.0,0.56307833]